[Event "*** SCC Grand Prix: Titled Tuesday Blitz"]
[Site "Chess.com"]
[Date "2020.06.09"]
[Round "5"]
[White "SilviusTiberius"]
[Black "earling8018"]
[Result "1/2-1/2"]
[WhiteElo "2466"]
[BlackElo "2084"]
[TimeControl "180+1"]
[EndTime "9:58:03 PDT"]
[Termination "Game drawn - insufficient material"]

1. e4 {[%clk 0:03:00.9]} 1... e5 {[%clk 0:01:54.8]} 2. Nf3 {[%clk 0:02:59.4]}
2... Nc6 {[%clk 0:01:54.8]} 3. Bb5 {[%clk 0:02:59.7]} 3... a6 {[%clk 0:01:55.1]}
4. Ba4 {[%clk 0:03:00]} 4... Nf6 {[%clk 0:01:55.5]} 5. O-O {[%clk 0:03:00.4]}
5... Be7 {[%clk 0:01:56]} 6. Re1 {[%clk 0:03:00.9]} 6... b5 {[%clk 0:01:56.3]}
7. Bb3 {[%clk 0:03:01.4]} 7... d6 {[%clk 0:01:57.2]} 8. c3 {[%clk 0:03:01.7]}
8... O-O {[%clk 0:01:57.5]} 9. h3 {[%clk 0:03:01.9]} 9... Nd7 {[%clk 0:01:58]}
10. d4 {[%clk 0:03:01.8]} 10... Na5 {[%clk 0:01:58.5]} 11. Bc2 {[%clk
0:03:01.4]} 11... c5 {[%clk 0:01:59]} 12. d5 {[%clk 0:02:57.3]} 12... Nf6 {[%clk
0:01:56.5]} 13. Nbd2 {[%clk 0:02:54.3]} 13... Bd7 {[%clk 0:01:56.6]} 14. b3
{[%clk 0:02:50]} 14... Nb7 {[%clk 0:01:54.5]} 15. a4 {[%clk 0:02:46.8]} 15...
Qc7 {[%clk 0:01:53.1]} 16. c4 {[%clk 0:02:46.3]} 16... bxc4 {[%clk 0:01:51.2]}
17. Nxc4 {[%clk 0:02:34.5]} 17... Na5 {[%clk 0:01:48]} 18. Nfxe5 {[%clk
0:02:32.7]} 18... dxe5 {[%clk 0:01:41.6]} 19. d6 {[%clk 0:02:32.1]} 19... Bxd6
{[%clk 0:01:37.6]} 20. Qxd6 {[%clk 0:02:28.7]} 20... Qxd6 {[%clk 0:01:35.7]} 21.
Nxd6 {[%clk 0:02:29.6]} 21... Rab8 {[%clk 0:01:29]} 22. Rb1 {[%clk 0:02:22.2]}
22... Be6 {[%clk 0:01:28.9]} 23. Bb2 {[%clk 0:01:46.6]} 23... Nd7 {[%clk
0:01:17]} 24. Red1 {[%clk 0:01:24.4]} 24... Nxb3 {[%clk 0:01:07]} 25. Nf5 {[%clk
0:01:18.4]} 25... Nd4 {[%clk 0:01:00]} 26. Bd3 {[%clk 0:01:07]} 26... c4 {[%clk
0:00:56.4]} 27. Bf1 {[%clk 0:00:58]} 27... Bxf5 {[%clk 0:00:56]} 28. exf5 {[%clk
0:00:56.5]} 28... Nc5 {[%clk 0:00:54.6]} 29. Ba3 {[%clk 0:00:50.3]} 29... Rxb1
{[%clk 0:00:42.5]} 30. Rxb1 {[%clk 0:00:51.2]} 30... Ndb3 {[%clk 0:00:25.6]} 31.
Bxc4 {[%clk 0:00:47.7]} 31... Nd2 {[%clk 0:00:25.8]} 32. Bxc5 {[%clk 0:00:35.9]}
32... Nxb1 {[%clk 0:00:24.8]} 33. Bxf8 {[%clk 0:00:35.1]} 33... Kxf8 {[%clk
0:00:25.3]} 34. Bxa6 {[%clk 0:00:35.7]} 34... Ke7 {[%clk 0:00:21]} 35. a5 {[%clk
0:00:25.1]} 35... Kd6 {[%clk 0:00:19.3]} 36. Bc4 {[%clk 0:00:19.3]} 36... f6
{[%clk 0:00:18.6]} 37. g4 {[%clk 0:00:18.7]} 37... Kc5 {[%clk 0:00:18.2]} 38. a6
{[%clk 0:00:16.7]} 38... Kb6 {[%clk 0:00:17.2]} 39. Kg2 {[%clk 0:00:17.2]} 39...
Nc3 {[%clk 0:00:15.6]} 40. Kg3 {[%clk 0:00:16.8]} 40... Ne4+ {[%clk 0:00:15.2]}
41. Kg2 {[%clk 0:00:14.8]} 41... Nc5 {[%clk 0:00:15.7]} 42. f4 {[%clk
0:00:11.2]} 42... exf4 {[%clk 0:00:14.8]} 43. Kf3 {[%clk 0:00:11.3]} 43... Nxa6
{[%clk 0:00:14.6]} 44. Bxa6 {[%clk 0:00:10.9]} 44... Kxa6 {[%clk 0:00:15]} 45.
Kxf4 {[%clk 0:00:11.6]} 45... Kb6 {[%clk 0:00:15.5]} 46. g5 {[%clk 0:00:12]}
46... Kc5 {[%clk 0:00:13.9]} 47. h4 {[%clk 0:00:11]} 47... Kd5 {[%clk
0:00:12.6]} 48. gxf6 {[%clk 0:00:08.9]} 48... gxf6 {[%clk 0:00:11.9]} 49. Kg4
{[%clk 0:00:09.5]} 49... Ke4 {[%clk 0:00:10.7]} 50. Kh5 {[%clk 0:00:07.3]} 50...
Kxf5 {[%clk 0:00:10.3]} 51. Kh6 {[%clk 0:00:08.2]} 51... Kg4 {[%clk 0:00:09.9]}
52. Kxh7 {[%clk 0:00:07]} 52... f5 {[%clk 0:00:05.7]} 53. Kg6 {[%clk 0:00:07.5]}
53... f4 {[%clk 0:00:03.7]} 54. h5 {[%clk 0:00:07.9]} 54... f3 {[%clk
0:00:03.7]} 55. h6 {[%clk 0:00:08.6]} 55... f2 {[%clk 0:00:04]} 56. h7 {[%clk
0:00:09.3]} 56... f1=Q {[%clk 0:00:04.1]} 57. h8=Q {[%clk 0:00:10.2]} 57... Qf5+
{[%clk 0:00:03.1]} 58. Kg7 {[%clk 0:00:09.8]} 58... Qg5+ {[%clk 0:00:01.8]} 59.
Kf8 {[%clk 0:00:09.6]} 59... Qd8+ {[%clk 0:00:01.3]} 60. Kg7 {[%clk 0:00:09.4]}
60... Qxh8+ {[%clk 0:00:02]} 61. Kxh8 {[%clk 0:00:10.3]} 1/2-1/2

[Event "*** SCC Grand Prix: Titled Tuesday Blitz"]
[Site "Chess.com"]
[Date "2020.06.09"]
[Round "5"]
[White "Gahan-MG"]
[Black "RusPakhom"]
[Result "0-1"]
[WhiteElo "2517"]
[BlackElo "2385"]
[TimeControl "180+1"]
[EndTime "9:58:09 PDT"]
[Termination "RusPakhom won by resignation"]

1. e4 {[%clk 0:03:00.9]} 1... e6 {[%clk 0:02:58]} 2. b3 {[%clk 0:02:57.8]} 2...
d5 {[%clk 0:02:58.3]} 3. Bb2 {[%clk 0:02:57.1]} 3... c5 {[%clk 0:02:56.5]} 4.
exd5 {[%clk 0:02:54.3]} 4... exd5 {[%clk 0:02:56.2]} 5. Bb5+ {[%clk 0:02:53.7]}
5... Nc6 {[%clk 0:02:52.5]} 6. Qe2+ {[%clk 0:02:53.1]} 6... Be6 {[%clk
0:02:51.6]} 7. Nf3 {[%clk 0:02:52.9]} 7... Nf6 {[%clk 0:02:49.8]} 8. O-O {[%clk
0:02:51.5]} 8... Bd6 {[%clk 0:02:18.8]} 9. d4 {[%clk 0:02:50.6]} 9... O-O {[%clk
0:02:16.5]} 10. dxc5 {[%clk 0:02:49.5]} 10... Bxc5 {[%clk 0:02:15.9]} 11. Nbd2
{[%clk 0:02:48.2]} 11... d4 {[%clk 0:02:06.1]} 12. Rad1 {[%clk 0:02:30.3]} 12...
Bg4 {[%clk 0:01:56.8]} 13. h3 {[%clk 0:02:28]} 13... Bh5 {[%clk 0:01:44.3]} 14.
Qc4 {[%clk 0:02:22.5]} 14... Qd6 {[%clk 0:01:29.7]} 15. Bxc6 {[%clk 0:02:19.1]}
15... bxc6 {[%clk 0:01:21.2]} 16. Rde1 {[%clk 0:02:11.5]} 16... Rad8 {[%clk
0:01:19.1]} 17. Re5 {[%clk 0:01:58.8]} 17... Bb6 {[%clk 0:01:16]} 18. Rfe1
{[%clk 0:01:52.9]} 18... Bg6 {[%clk 0:01:14.7]} 19. a4 {[%clk 0:01:27.7]} 19...
d3 {[%clk 0:00:53.9]} 20. a5 {[%clk 0:01:24.3]} 20... Bc7 {[%clk 0:00:53.8]} 21.
cxd3 {[%clk 0:01:19.8]} 21... Bxd3 {[%clk 0:00:52.8]} 22. Qc5 {[%clk 0:01:15.1]}
22... Qxc5 {[%clk 0:00:44.3]} 23. Rxc5 {[%clk 0:01:16]} 23... Bb5 {[%clk
0:00:44.8]} 24. Bxf6 {[%clk 0:01:07.1]} 24... gxf6 {[%clk 0:00:44]} 25. Nc4
{[%clk 0:01:05.9]} 25... Rd5 {[%clk 0:00:39.3]} 26. Rxd5 {[%clk 0:01:02.1]}
26... cxd5 {[%clk 0:00:40.2]} 27. Ne3 {[%clk 0:01:02.2]} 27... Bxa5 {[%clk
0:00:39.2]} 28. Rd1 {[%clk 0:01:01.3]} 28... Rd8 {[%clk 0:00:36.4]} 29. Nxd5
{[%clk 0:00:55.9]} 29... Kg7 {[%clk 0:00:32.3]} 30. Ra1 {[%clk 0:00:44.5]} 30...
Rxd5 {[%clk 0:00:27.3]} 31. Rxa5 {[%clk 0:00:43.9]} 31... a6 {[%clk 0:00:27.8]}
32. Kh2 {[%clk 0:00:37.9]} 32... Rd3 {[%clk 0:00:27.2]} 33. b4 {[%clk
0:00:36.2]} 33... Rb3 {[%clk 0:00:26.1]} 34. Ra2 {[%clk 0:00:29.1]} 34... Rxb4
{[%clk 0:00:26]} 35. Kg3 {[%clk 0:00:26.9]} 35... Ra4 {[%clk 0:00:17.1]} 36. Rd2
{[%clk 0:00:26.2]} 36... Rc4 {[%clk 0:00:17]} 37. Rd6 {[%clk 0:00:24.1]} 37...
Rc6 {[%clk 0:00:16.5]} 38. Rd5 {[%clk 0:00:22.9]} 38... Bc4 {[%clk 0:00:16.3]}
39. Ra5 {[%clk 0:00:21.1]} 39... Bb5 {[%clk 0:00:15.6]} 40. Nd4 {[%clk
0:00:21.5]} 40... Rb6 {[%clk 0:00:15.7]} 41. Kf4 {[%clk 0:00:19.4]} 41... Kg6
{[%clk 0:00:14.4]} 42. g4 {[%clk 0:00:19.3]} 42... Rd6 {[%clk 0:00:14.2]} 43.
Nf5 {[%clk 0:00:19.1]} 43... Rd5 {[%clk 0:00:13.1]} 44. Ra3 {[%clk 0:00:18.4]}
44... Rc5 {[%clk 0:00:13]} 45. Re3 {[%clk 0:00:17.8]} 45... Rc4+ {[%clk
0:00:13.1]} 46. Kg3 {[%clk 0:00:18.1]} 46... h5 {[%clk 0:00:09.5]} 47. Re7
{[%clk 0:00:17.1]} 47... hxg4 {[%clk 0:00:09.2]} 48. hxg4 {[%clk 0:00:18]} 48...
Rc3+ {[%clk 0:00:09.3]} 49. f3 {[%clk 0:00:17.8]} 49... Bc6 {[%clk 0:00:09.5]}
50. Nd4 {[%clk 0:00:14.9]} 50... Bd5 {[%clk 0:00:08.8]} 51. Rd7 {[%clk
0:00:14.2]} 51... Bc4 {[%clk 0:00:06.3]} 52. Rd6 {[%clk 0:00:13.4]} 52... a5
{[%clk 0:00:06.5]} 53. Nf5 {[%clk 0:00:10.1]} 53... a4 {[%clk 0:00:06.7]} 54.
Rd8 {[%clk 0:00:09]} 54... a3 {[%clk 0:00:06.3]} 55. Ra8 {[%clk 0:00:06.7]}
55... a2 {[%clk 0:00:06.1]} 56. Ne7+ {[%clk 0:00:04.7]} 56... Kg7 {[%clk
0:00:04.3]} 57. Nf5+ {[%clk 0:00:05]} 57... Kh7 {[%clk 0:00:04.2]} 58. Kf4
{[%clk 0:00:02.7]} 58... Rc1 {[%clk 0:00:04.3]} 59. Ne3 {[%clk 0:00:02.3]} 59...
a1=Q {[%clk 0:00:03.8]} 60. Rxa1 {[%clk 0:00:02.6]} 60... Rxa1 {[%clk
0:00:04.7]} 61. Nxc4 {[%clk 0:00:03.5]} 61... Ra4 {[%clk 0:00:05.2]} 0-1

[Event "*** SCC Grand Prix: Titled Tuesday Blitz"]
[Site "Chess.com"]
[Date "2020.06.09"]
[Round "5"]
[White "BilguunSu"]
[Black "SergeyKarjakin"]
[Result "1/2-1/2"]
[WhiteElo "2625"]
[BlackElo "2958"]
[TimeControl "180+1"]
[EndTime "9:58:10 PDT"]
[Termination "Game drawn by repetition"]

1. e4 {[%clk 0:03:00.9]} 1... c6 {[%clk 0:02:59.2]} 2. d4 {[%clk 0:02:55.3]}
2... d5 {[%clk 0:03:00.1]} 3. Nd2 {[%clk 0:02:54.9]} 3... dxe4 {[%clk
0:02:59.8]} 4. Nxe4 {[%clk 0:02:53.1]} 4... Bf5 {[%clk 0:03:00.4]} 5. Ng3 {[%clk
0:02:52.5]} 5... Bg6 {[%clk 0:03:00.8]} 6. h4 {[%clk 0:02:47.6]} 6... h6 {[%clk
0:03:01.2]} 7. Nf3 {[%clk 0:02:46.5]} 7... Nd7 {[%clk 0:02:58.9]} 8. h5 {[%clk
0:02:46.1]} 8... Bh7 {[%clk 0:02:59.3]} 9. Bd3 {[%clk 0:02:46.6]} 9... Bxd3
{[%clk 0:02:59.8]} 10. Qxd3 {[%clk 0:02:46.3]} 10... e6 {[%clk 0:03:00.4]} 11.
Bd2 {[%clk 0:02:45.9]} 11... Ngf6 {[%clk 0:03:00.4]} 12. O-O-O {[%clk
0:02:45.8]} 12... Be7 {[%clk 0:03:00.9]} 13. Ne4 {[%clk 0:02:45.5]} 13... Nxe4
{[%clk 0:03:00.3]} 14. Qxe4 {[%clk 0:02:46]} 14... Nf6 {[%clk 0:03:01]} 15. Qe2
{[%clk 0:02:45.8]} 15... Qd5 {[%clk 0:03:00.5]} 16. Kb1 {[%clk 0:02:39.5]} 16...
Qe4 {[%clk 0:02:49.9]} 17. Be3 {[%clk 0:02:36.2]} 17... O-O {[%clk 0:02:44.2]}
18. Ne5 {[%clk 0:02:36]} 18... Nd5 {[%clk 0:02:39.6]} 19. Rhe1 {[%clk
0:02:23.9]} 19... Nxe3 {[%clk 0:02:18.2]} 20. Qxe3 {[%clk 0:02:20.6]} 20... Qxe3
{[%clk 0:02:18.2]} 21. Rxe3 {[%clk 0:02:12.8]} 21... Rfd8 {[%clk 0:02:18.2]} 22.
Red3 {[%clk 0:02:10]} 22... Rd6 {[%clk 0:02:07.6]} 23. c3 {[%clk 0:02:01.3]}
23... Rad8 {[%clk 0:02:06.3]} 24. Kc2 {[%clk 0:02:00.8]} 24... Rd5 {[%clk
0:01:40.9]} 25. f4 {[%clk 0:01:55.9]} 25... f6 {[%clk 0:01:36.6]} 26. Ng6 {[%clk
0:01:55.3]} 26... Bd6 {[%clk 0:01:36.2]} 27. g4 {[%clk 0:01:51.9]} 27... Kf7
{[%clk 0:01:32.1]} 28. c4 {[%clk 0:01:36.7]} 28... Ra5 {[%clk 0:01:31.2]} 29. a3
{[%clk 0:01:10.8]} 29... Ra4 {[%clk 0:01:17.2]} 30. c5 {[%clk 0:00:54.6]} 30...
Bc7 {[%clk 0:01:16.1]} 31. f5 {[%clk 0:00:46.1]} 31... exf5 {[%clk 0:01:08.3]}
32. Re1 {[%clk 0:00:37]} 32... Re8 {[%clk 0:01:01.2]} 33. Rxe8 {[%clk 0:00:34]}
33... Kxe8 {[%clk 0:01:02.1]} 34. gxf5 {[%clk 0:00:26.7]} 34... b6 {[%clk
0:01:00.4]} 35. b4 {[%clk 0:00:20.4]} 35... a5 {[%clk 0:00:56.7]} 36. Kb3 {[%clk
0:00:20.3]} 36... b5 {[%clk 0:00:56.9]} 37. Re3+ {[%clk 0:00:21.2]} 37... Kd8
{[%clk 0:00:56.8]} 38. Re7 {[%clk 0:00:21.7]} 38... axb4 {[%clk 0:00:56.9]} 39.
axb4 {[%clk 0:00:21.4]} 39... Ra1 {[%clk 0:00:57.3]} 40. Rxg7 {[%clk 0:00:21.3]}
40... Rb1+ {[%clk 0:00:57.1]} 41. Kc3 {[%clk 0:00:20.8]} 41... Rc1+ {[%clk
0:00:57]} 42. Kd3 {[%clk 0:00:20.6]} 42... Rd1+ {[%clk 0:00:55.6]} 43. Ke3
{[%clk 0:00:20.6]} 43... Re1+ {[%clk 0:00:55.6]} 44. Kd2 {[%clk 0:00:20.6]}
44... Rb1 {[%clk 0:00:53.6]} 45. Nf8 {[%clk 0:00:19.9]} 45... Bh2 {[%clk
0:00:47.7]} 46. Ne6+ {[%clk 0:00:19.2]} 46... Ke8 {[%clk 0:00:47.2]} 47. d5
{[%clk 0:00:19.2]} 47... cxd5 {[%clk 0:00:45.1]} 48. c6 {[%clk 0:00:19.2]} 48...
Rb2+ {[%clk 0:00:36.9]} 49. Kc3 {[%clk 0:00:18.8]} 49... Be5+ {[%clk 0:00:35.9]}
50. Kd3 {[%clk 0:00:19]} 50... Rb3+ {[%clk 0:00:35]} 51. Kd2 {[%clk 0:00:19.1]}
51... Rb2+ {[%clk 0:00:35.3]} 52. Kd3 {[%clk 0:00:18.2]} 52... Rb3+ {[%clk
0:00:35]} 53. Kd2 {[%clk 0:00:17.9]} 53... Rb2+ {[%clk 0:00:35.3]} 54. Kc1
{[%clk 0:00:18.8]} 54... Rxb4 {[%clk 0:00:34.5]} 55. c7 {[%clk 0:00:19.1]} 55...
Rc4+ {[%clk 0:00:34.2]} 56. Kd2 {[%clk 0:00:19.6]} 56... Bxc7 {[%clk 0:00:21.7]}
57. Nxc7+ {[%clk 0:00:19.3]} 57... Kf8 {[%clk 0:00:21.2]} 58. Ne6+ {[%clk
0:00:20.2]} 58... Ke8 {[%clk 0:00:21.7]} 59. Rh7 {[%clk 0:00:20.8]} 59... b4
{[%clk 0:00:19.5]} 60. Rxh6 {[%clk 0:00:21]} 60... b3 {[%clk 0:00:19.3]} 61.
Rh8+ {[%clk 0:00:21.5]} 61... Kf7 {[%clk 0:00:19.4]} 62. Rb8 {[%clk 0:00:21.9]}
62... Rh4 {[%clk 0:00:19.1]} 63. Rb7+ {[%clk 0:00:21.9]} 63... Kg8 {[%clk
0:00:17.8]} 64. Rxb3 {[%clk 0:00:21.2]} 64... Rxh5 {[%clk 0:00:17.9]} 65. Rf3
{[%clk 0:00:21.7]} 65... Kf7 {[%clk 0:00:16.7]} 66. Kd3 {[%clk 0:00:21.4]} 66...
Ke7 {[%clk 0:00:16.7]} 67. Nd4 {[%clk 0:00:19.8]} 67... Kd6 {[%clk 0:00:14.7]}
68. Re3 {[%clk 0:00:20.3]} 68... Kc5 {[%clk 0:00:14.6]} 69. Rg3 {[%clk
0:00:19.9]} 69... Rh1 {[%clk 0:00:13.6]} 70. Ne6+ {[%clk 0:00:19.7]} 70... Kd6
{[%clk 0:00:13.5]} 71. Nd4 {[%clk 0:00:20.2]} 71... Kc5 {[%clk 0:00:13]} 72. Nf3
{[%clk 0:00:19.7]} 72... Rh5 {[%clk 0:00:11.7]} 73. Nd4 {[%clk 0:00:17.2]} 73...
Rh1 {[%clk 0:00:11.5]} 1/2-1/2

[Event "*** SCC Grand Prix: Titled Tuesday Blitz"]
[Site "Chess.com"]
[Date "2020.06.09"]
[Round "5"]
[White "MuhittinBuker"]
[Black "DACF2905"]
[Result "0-1"]
[WhiteElo "1895"]
[BlackElo "2228"]
[TimeControl "180+1"]
[EndTime "9:58:11 PDT"]
[Termination "DACF2905 won on time"]

1. d4 {[%clk 0:03:00.9]} 1... Nf6 {[%clk 0:02:59.3]} 2. c4 {[%clk 0:03:00.5]}
2... e6 {[%clk 0:02:59.5]} 3. Nf3 {[%clk 0:02:59.3]} 3... b6 {[%clk 0:02:58.4]}
4. g3 {[%clk 0:02:59.4]} 4... Bb7 {[%clk 0:02:58.8]} 5. Bg2 {[%clk 0:02:59.5]}
5... Be7 {[%clk 0:02:57.5]} 6. O-O {[%clk 0:02:59.4]} 6... O-O {[%clk 0:02:58]}
7. Nc3 {[%clk 0:02:59.1]} 7... d5 {[%clk 0:02:58.4]} 8. cxd5 {[%clk 0:02:53.2]}
8... exd5 {[%clk 0:02:59.3]} 9. Bf4 {[%clk 0:02:51.6]} 9... Nbd7 {[%clk
0:02:54.8]} 10. Rc1 {[%clk 0:02:41.5]} 10... c6 {[%clk 0:02:54.2]} 11. h3 {[%clk
0:02:32.1]} 11... Re8 {[%clk 0:02:54]} 12. Re1 {[%clk 0:02:31.3]} 12... Nf8
{[%clk 0:02:52.7]} 13. a3 {[%clk 0:02:30.7]} 13... Ng6 {[%clk 0:02:51.1]} 14.
Bg5 {[%clk 0:02:24.7]} 14... Ne4 {[%clk 0:02:48.9]} 15. Bxe7 {[%clk 0:02:24]}
15... Rxe7 {[%clk 0:02:48.1]} 16. e3 {[%clk 0:02:17.8]} 16... Qd6 {[%clk
0:02:34.7]} 17. b4 {[%clk 0:02:10.6]} 17... Rae8 {[%clk 0:02:32.9]} 18. Qc2
{[%clk 0:02:05.8]} 18... Nxc3 {[%clk 0:02:00.4]} 19. Qxc3 {[%clk 0:02:04.7]}
19... h6 {[%clk 0:01:57.6]} 20. h4 {[%clk 0:01:54.4]} 20... h5 {[%clk
0:01:39.8]} 21. Ng5 {[%clk 0:01:48.8]} 21... f6 {[%clk 0:01:38.5]} 22. Nh3
{[%clk 0:01:36.9]} 22... Rc7 {[%clk 0:01:32.1]} 23. Bf3 {[%clk 0:01:35.9]} 23...
Bc8 {[%clk 0:01:29.3]} 24. Kg2 {[%clk 0:01:32.8]} 24... Bg4 {[%clk 0:01:28.6]}
25. Qd3 {[%clk 0:01:19]} 25... Bxf3+ {[%clk 0:01:16.9]} 26. Kxf3 {[%clk
0:01:18.2]} 26... Re4 {[%clk 0:01:16.7]} 27. Kg2 {[%clk 0:01:05.6]} 27... Nf8
{[%clk 0:01:01.6]} 28. Rc3 {[%clk 0:01:02.6]} 28... Qe7 {[%clk 0:00:52.3]} 29.
Rec1 {[%clk 0:01:01.9]} 29... Re6 {[%clk 0:00:50.2]} 30. Nf4 {[%clk 0:01:00.1]}
30... Rd6 {[%clk 0:00:50.4]} 31. Nxh5 {[%clk 0:00:58.9]} 31... Ne6 {[%clk
0:00:47.5]} 32. Qf5 {[%clk 0:00:51.7]} 32... c5 {[%clk 0:00:36]} 33. bxc5 {[%clk
0:00:50]} 33... bxc5 {[%clk 0:00:36.4]} 34. Nf4 {[%clk 0:00:49.3]} 34... Nxf4+
{[%clk 0:00:33.9]} 35. Qxf4 {[%clk 0:00:43]} 35... c4 {[%clk 0:00:34.1]} 36. h5
{[%clk 0:00:41.4]} 36... Rdc6 {[%clk 0:00:29.3]} 37. g4 {[%clk 0:00:40.6]} 37...
Kf7 {[%clk 0:00:25.5]} 38. Qf5 {[%clk 0:00:39.1]} 38... Qe6 {[%clk 0:00:25]} 39.
Qg6+ {[%clk 0:00:36.2]} 39... Kg8 {[%clk 0:00:25.1]} 40. h6 {[%clk 0:00:31.5]}
40... Qf7 {[%clk 0:00:25]} 41. Qxf7+ {[%clk 0:00:19.2]} 41... Kxf7 {[%clk
0:00:24.9]} 42. h7 {[%clk 0:00:18.3]} 42... Rc8 {[%clk 0:00:23.3]} 43. Rh1
{[%clk 0:00:18.7]} 43... Rh8 {[%clk 0:00:23.1]} 44. f3 {[%clk 0:00:18.8]} 44...
g5 {[%clk 0:00:19.8]} 45. e4 {[%clk 0:00:18.7]} 45... dxe4 {[%clk 0:00:20.1]}
46. fxe4 {[%clk 0:00:18.7]} 46... Kg6 {[%clk 0:00:20.6]} 47. Rhc1 {[%clk
0:00:17.7]} 47... Rxh7 {[%clk 0:00:19.3]} 48. Rxc4 {[%clk 0:00:17.4]} 48... Rxc4
{[%clk 0:00:19.9]} 49. Rxc4 {[%clk 0:00:17]} 49... Rb7 {[%clk 0:00:20.4]} 50. a4
{[%clk 0:00:16.2]} 50... Rb3 {[%clk 0:00:19.9]} 51. Rc6 {[%clk 0:00:14.9]} 51...
Rb4 {[%clk 0:00:15.5]} 52. e5 {[%clk 0:00:13.7]} 52... Rxd4 {[%clk 0:00:15.4]}
53. Rxf6+ {[%clk 0:00:13]} 53... Kg7 {[%clk 0:00:15.6]} 54. Ra6 {[%clk
0:00:12.8]} 54... Rxg4+ {[%clk 0:00:14.6]} 55. Kf3 {[%clk 0:00:12.3]} 55... Rf4+
{[%clk 0:00:14.9]} 56. Kg3 {[%clk 0:00:12.4]} 56... Re4 {[%clk 0:00:14.9]} 57.
e6 {[%clk 0:00:10]} 57... Kf6 {[%clk 0:00:14.7]} 58. Rxa7 {[%clk 0:00:08.4]}
58... Rxe6 {[%clk 0:00:14.5]} 59. Ra5 {[%clk 0:00:07.5]} 59... Re3+ {[%clk
0:00:13.8]} 60. Kg4 {[%clk 0:00:07.4]} 60... Re4+ {[%clk 0:00:13.8]} 61. Kg3
{[%clk 0:00:07.8]} 61... Kg6 {[%clk 0:00:13.8]} 62. Ra8 {[%clk 0:00:06.3]} 62...
Kf5 {[%clk 0:00:12.7]} 63. a5 {[%clk 0:00:06.3]} 63... Ra4 {[%clk 0:00:12.1]}
64. a6 {[%clk 0:00:06.2]} 64... Ra3+ {[%clk 0:00:12.4]} 65. Kf2 {[%clk
0:00:04.8]} 65... Kg4 {[%clk 0:00:12.8]} 66. a7 {[%clk 0:00:02.4]} 66... Ra2+
{[%clk 0:00:10.7]} 67. Ke3 {[%clk 0:00:02.7]} 67... Kg3 {[%clk 0:00:10.9]} 68.
Rg8 {[%clk 0:00:01.7]} 68... Rxa7 {[%clk 0:00:09.8]} 69. Rxg5+ {[%clk 0:00:02]}
69... Kh4 {[%clk 0:00:10.2]} 70. Rb5 {[%clk 0:00:01.6]} 70... Ra4 {[%clk
0:00:09.3]} 71. Kd3 {[%clk 0:00:01.2]} 71... Rf4 {[%clk 0:00:08.8]} 0-1